bitfinex-derivatives/quotes_SOLF0:USTF0_20260202
["timestamp","ask_amount","ask_price","bid_price","bid_amount"]
[1770028046233,53.19496315,103.02,102.95,42.75698402]
[1770028046833,53.19566315,103.01,102.95,42.75698402]
[1770028047231,51.98703557,103.03,102.95,42.75698402]
[1770028047630,60.73223557,103.03,102.96,51.50738402]
[1770028050536,53.19466315,103.03,102.96,51.50738402]
[1770028053432,53.19466315,103.03,102.97,51.50648402]
[1770028055138,8.7452,103.03,102.97,51.50648402]
[1770028055345,44.44946315,103.05,102.96,42.75698402]
[1770028056445,44.44946315,103.05,102.95,154.09234711]
[1770028056446,53.19386315,103.04,102.97,51.50648402]
[1770028060644,53.19386315,103.04,102.99,41.5329994]
[1770028066946,8.7444,103.04,102.99,41.5329994]
[1770028067249,52.09474721,103.08,103.0,177.5972994]
[1770028067549,52.09474721,103.08,103.01,41.5329994]
[1770028068049,52.09474721,103.08,103.02,8.7453]
[1770028068050,60.83494721,103.08,103.02,8.7453]
[1770028068244,60.83494721,103.08,103.02,51.66384991]
[1770028068440,53.28832508,103.08,103.02,51.66384991]
[1770028068643,44.54812508,103.08,103.02,42.91854991]
[1770028070344,52.71923608,103.07,103.02,42.91854991]
[1770028070546,43.97813608,103.07,103.0,42.91854991]
[1770028072348,43.97813608,103.06,103.0,51.66514991]
[1770028072749,43.97813608,103.06,103.0,42.91854991]
[1770028073055,43.97813608,103.04,102.98,42.91854991]
[1770028073553,8.7445,103.03,102.98,42.91854991]
[1770028075152,43.97813608,103.02,102.96,42.91854991]
[1770028076154,43.97813608,103.02,102.94,383.61702258]
[1770028076155,43.97813608,103.0,102.94,426.53557249]
[1770028077454,8.748,102.99,102.94,426.53557249]
[1770028080662,43.97813608,103.0,102.92,387.32]
[1770028080663,52.72683608,102.98,102.92,42.91854991]
[1770028080857,43.97813608,102.98,102.92,42.91854991]
[1770028082455,8.7497,102.97,102.92,42.91854991]
[1770028084561,11.77071419,102.97,102.92,42.91854991]
[1770028085364,8.7478,102.99,102.94,42.91854991]
[1770028085556,46.99915027,103.0,102.94,42.91854991]
[1770028085967,46.99915027,102.99,102.92,42.91854991]
[1770028086270,136.0658,103.0,102.92,42.91854991]
[1770028086271,3.02101419,102.97,102.92,42.91854991]
[1770028086666,8.7498,102.97,102.92,51.67234991]
[1770028086870,43.97813608,102.98,102.92,51.67234991]
[1770028087877,3.02101419,102.99,102.93,52.82495651]
[1770028088475,310.0103,103.05,102.95,44.07205651]
[1770028088476,42.48074513,103.04,102.95,44.07205651]
[1770028088668,3.02101419,103.03,102.95,47.0930707]
[1770028088869,3.02101419,103.03,102.94,136.1424]
[1770028088870,45.50175932,103.03,102.97,44.07205651]
[1770028089277,54.24625932,103.03,102.97,44.07205651]
[1770028090065,11.76651419,103.02,102.97,44.07205651]
[1770028090871,45.50175932,103.03,102.97,52.82155651]
[1770028091072,3.02101419,103.02,102.97,44.07205651]
[1770028091268,3.02101419,103.01,102.97,44.07205651]
[1770028093177,11.76731419,103.01,102.95,52.82255651]
[1770028093377,45.50175932,103.02,102.96,52.82235651]
[1770028093773,45.50175932,103.01,102.96,44.07205651]
[1770028093984,45.50175932,103.0,102.94,44.07205651]
[1770028094980,3.02101419,102.99,102.94,44.07205651]
[1770028095172,45.50175932,103.02,102.95,44.07205651]
[1770028095377,415.514,103.04,102.96,47.0930707]
[1770028095378,3.02101419,103.03,102.96,47.0930707]
[1770028096280,11.76551419,103.03,102.98,44.07205651]
[1770028096481,8.7445,103.03,102.98,44.07205651]
[1770028097076,45.50175932,103.04,102.98,44.07205651]
[1770028097283,8.7437,103.04,102.98,52.82055651]
[1770028097680,3.02101419,103.05,102.98,52.82055651]
[1770028098182,3.02101419,103.04,102.98,52.82055651]
[1770028098580,45.50175932,103.05,102.98,47.0930707]
[1770028098782,54.24455932,103.05,102.99,52.81985651]
[1770028098978,51.22354513,103.05,102.99,52.81985651]
[1770028099291,3.02101419,103.06,103.0,52.81895651]
[1770028100184,45.50175932,103.07,103.0,52.81895651]
[1770028100583,42.48074513,103.07,103.02,8.7452]
[1770028100780,45.50175932,103.09,103.02,44.07205651]
[1770028100979,3.02101419,103.1,103.03,44.07205651]
[1770028101182,45.50175932,103.11,103.04,47.0930707]
[1770028101583,42.48074513,103.11,103.05,52.81475651]
[1770028101788,45.50175932,103.11,103.05,52.81475651]
[1770028101983,3.02101419,103.11,103.05,52.81475651]
[1770028102184,45.50175932,103.1,103.03,55.8367707]
[1770028102483,3.02101419,103.07,103.01,44.07205651]
[1770028102679,45.50175932,103.08,103.01,44.07205651]
[1770028102983,3.02101419,103.07,103.01,52.81755651]
[1770028103288,135.9208,103.11,103.01,52.81755651]
[1770028103289,42.48074513,103.12,103.01,44.07205651]
[1770028103485,42.48074513,103.1,103.04,44.07205651]
[1770028103683,3.02101419,103.11,103.02,523.4157]
[1770028103684,45.50175932,103.09,103.03,44.07205651]
[1770028103884,3.02101419,103.08,103.03,44.07205651]
[1770028104084,3.02101419,103.1,103.03,52.81645651]
[1770028104284,54.24015932,103.11,103.03,47.0930707]
[1770028104787,8.7384,103.11,103.05,44.07205651]
[1770028105386,11.75941419,103.11,103.05,44.07205651]
[1770028105992,3.02101419,103.09,103.05,44.07205651]
[1770028107187,3.02101419,103.09,103.03,431.43205651]
[1770028107188,3.02101419,103.08,103.03,431.43205651]
[1770028107392,3.02101419,103.07,103.01,44.07205651]
[1770028109292,11.76211419,103.07,103.01,44.07205651]
[1770028112393,11.75652009,103.07,103.01,44.07205651]
[1770028114096,11.75742009,103.06,103.01,44.07205651]
[1770028115198,11.75822009,103.05,102.99,440.13985651]
[1770028115393,3.01542009,103.04,103.0,44.07205651]
[1770028115600,8.7428,103.05,102.98,426.71996989]
[1770028115601,3.01542009,103.03,102.98,426.71996989]
[1770028116894,3.01542009,103.02,102.98,382.64791338]
[1770028117093,3.01542009,103.02,102.96,431.33205651]
[1770028117292,11.76082009,103.02,102.96,431.33205651]
[1770028117495,3.01542009,103.04,102.97,44.07205651]
[1770028117701,3.01542009,103.05,102.98,44.07205651]
[1770028118091,3.01542009,103.05,102.99,51.26223517]
[1770028118290,45.49616522,103.06,102.99,51.26223517]
[1770028118691,45.49616522,103.06,102.99,54.27765526]
[1770028118900,45.49616522,103.06,103.0,42.51463517]
[1770028118901,42.48074513,103.06,103.0,42.51463517]
[1770028119303,54.23836522,103.06,103.0,42.51463517]
[1770028119594,54.23836522,103.06,103.0,51.26153517]
[1770028119595,8.7422,103.06,103.0,51.26153517]
[1770028120301,11.75762009,103.06,103.0,51.26153517]
[1770028120501,8.7422,103.06,103.0,51.26153517]
[1770028120899,43.99538315,103.07,103.0,42.51463517]
[1770028121203,43.99538315,103.05,102.98,42.51463517]
[1770028121997,8.7447,103.03,102.98,42.51463517]
[1770028123296,8.7437,103.04,102.98,42.51463517]
[1770028123495,43.99538315,103.06,102.99,42.51463517]
[1770028124302,8.7428,103.05,102.99,51.26243517]
[1770028126104,8.7437,103.04,102.99,42.51463517]
[1770028126300,43.99538315,103.06,102.99,42.51463517]
[1770028126601,43.99538315,103.06,102.99,51.26233517]
[1770028127501,43.99538315,103.06,102.99,42.51463517]
[1770028127809,8.7437,103.04,102.99,42.51463517]
[1770028128106,52.73798315,103.06,102.99,51.26223517]
[1770028129307,52.73798315,103.06,103.0,53.19542787]
[1770028129508,52.73798315,103.06,103.0,44.44852787]
[1770028129509,8.7428,103.05,103.0,44.44852787]
[1770028130908,51.04559011,103.05,103.0,44.44852787]
[1770028131601,42.30279011,103.05,103.0,44.44852787]
[1770028131907,42.30279011,103.08,103.01,44.44852787]
[1770028132203,8.7419,103.06,103.01,44.44852787]
[1770028135310,8.7428,103.05,103.01,44.44852787]
[1770028135516,8.7428,103.05,103.0,8.7469]
[1770028136116,8.7428,103.05,103.0,53.19542787]
[1770028138816,8.7428,103.05,103.0,44.44852787]
[1770028140415,11.75918593,103.05,103.0,44.44852787]
[1770028140815,8.7428,103.05,103.0,44.44852787]
[1770028143015,3.01638593,103.04,102.99,17.89220248]
[1770028143215,45.31917604,103.02,102.94,3.01638593]
[1770028143516,3.01638593,103.0,102.94,3.01638593]
[1770028143720,3.01638593,103.0,102.92,163.0337559]
[1770028144018,3.01638593,103.0,102.92,3.01638593]
[1770028144417,3.01638593,102.99,102.92,3.01638593]
[1770028144718,11.76428593,102.99,102.91,390.31638593]
[1770028145116,11.76428593,102.99,102.92,44.44852787]
[1770028145718,11.76428593,102.99,102.92,47.4649138]
[1770028146323,11.76428593,102.99,102.94,44.44852787]
[1770028147522,45.31917604,102.98,102.92,44.44852787]
[1770028148225,136.0708,103.0,102.94,44.77983184]
[1770028148226,3.01638593,103.0,102.94,44.77983184]
[1770028148521,3.01638593,102.99,102.94,44.77983184]
[1770028148726,11.76508593,102.98,102.92,44.77983184]
[1770028150528,8.7487,102.98,102.92,44.77983184]
[1770028151632,8.7487,102.98,102.92,53.53353184]
[1770028152326,11.76418593,103.0,102.93,53.53233184]
[1770028152533,43.9678428,103.0,102.93,53.53233184]
[1770028152731,3.01638593,103.01,102.93,47.79621777]
[1770028153529,8.7469,103.01,102.95,53.53093184]
[1770028153733,43.9678428,103.02,102.95,47.79621777]
[1770028154134,43.9678428,103.02,102.96,53.53023184]
[1770028156628,52.7115428,103.04,102.98,44.77983184]
[1770028156830,3.01638593,103.05,102.98,47.79621777]
[1770028157026,3.01638593,103.05,102.98,44.77983184]
[1770028157226,3.01638593,103.04,102.98,44.77983184]
[1770028157637,52.7106428,103.05,102.98,47.79621777]
[1770028157835,52.7106428,103.05,102.99,53.52753184]
[1770028159736,49.69425687,103.05,102.99,53.52753184]
[1770028160735,11.75838593,103.06,102.99,53.52753184]
[1770028160937,11.75838593,103.06,103.0,53.52683184]
[1770028161940,40.95145687,103.07,103.0,53.52683184]
[1770028161941,43.9678428,103.07,103.01,53.52593184]
[1770028163235,43.9678428,103.07,103.01,71.33634521]
[1770028163738,52.7092428,103.07,103.01,71.33634521]
[1770028163942,43.9678428,103.06,103.01,62.59024521]
[1770028164240,43.9678428,103.06,103.01,17.81041337]
[1770028165142,3.01638593,103.05,103.0,53.52673184]
[1770028165442,43.9678428,103.04,102.98,44.77983184]
[1770028166336,52.7115428,103.04,102.98,53.52843184]
[1770028168643,3.01638593,103.04,102.99,53.52763184]
[1770028168942,43.9678428,103.06,102.99,47.79621777]
[1770028169145,40.95145687,103.06,102.99,47.79621777]
[1770028169747,40.95145687,103.06,103.01,44.77983184]
[1770028170342,43.9678428,103.06,103.01,44.77983184]
[1770028171348,52.7097428,103.06,103.01,44.77983184]
[1770028174349,52.70915235,103.06,103.01,44.77983184]
[1770028177753,43.96725235,103.06,103.01,44.77983184]
[1770028178653,47.16641631,103.05,102.99,42.5727799]
[1770028179351,47.16641631,103.05,103.0,51.3196799]
[1770028180153,3.01579548,103.04,103.0,42.5727799]
[1770028181856,55.90921631,103.05,103.0,42.5727799]
[1770028182059,52.89342083,103.05,103.0,51.3196799]
[1770028182256,55.90921631,103.05,103.0,51.3196799]
[1770028182552,55.91001631,103.04,102.99,42.5727799]
[1770028183455,55.91001631,103.04,102.99,51.3204799]
[1770028183756,11.75869548,103.05,102.99,51.3204799]
[1770028185055,55.90931631,103.05,102.99,51.3204799]
[1770028187662,52.89352083,103.05,102.99,51.3204799]
[1770028187960,55.90931631,103.05,102.99,51.3204799]
[1770028188762,8.7429,103.05,103.01,45.16278304]
[1770028191161,3.01579548,103.05,103.01,45.16278304]
[1770028191356,3.01579548,103.05,102.97,526.41839548]
[1770028191357,46.68381986,103.05,102.99,53.91058304]
[1770028191758,3.01579548,103.04,102.99,53.91058304]
[1770028192462,55.42661986,103.05,102.99,53.91058304]
[1770028197467,52.41082438,103.05,102.99,53.91058304]
[1770028197668,55.42661986,103.05,102.99,53.91058304]
[1770028198572,43.66802438,103.07,103.01,45.16278304]
[1770028198774,46.68381986,103.08,103.01,45.16278304]
[1770028199066,3.01579548,103.09,103.03,45.16278304]
[1770028199266,3.01579548,103.11,103.04,45.16278304]
[1770028199467,46.68381986,103.1,103.04,45.16278304]
[1770028199671,3.01579548,103.09,103.04,45.16278304]
[1770028199867,46.68381986,103.09,103.04,45.16278304]
[1770028200268,43.66802438,103.09,103.04,45.16278304]
[1770028200774,46.68381986,103.09,103.04,45.16278304]
[1770028200970,46.68381986,103.09,103.02,62.97319641]
[1770028201275,3.01579548,103.05,103.02,17.81041337]
[1770028201469,135.9606,103.08,103.0,17.81041337]
[1770028201470,46.68381986,103.04,103.0,17.81041337]
[1770028201667,3.01579548,103.02,102.98,62.97319641]
[1770028201866,46.68381986,103.03,102.98,45.16278304]
[1770028204176,3.01579548,103.02,102.98,45.16278304]
[1770028204378,3.01579548,103.0,102.97,17.81041337]
[1770028204679,3.01579548,103.0,102.96,45.16278304]
[1770028205170,3.01579548,103.0,102.96,62.97319641]
[1770028205774,3.01579548,103.0,102.96,45.16278304]
[1770028206475,43.66802438,103.02,102.96,45.16278304]
[1770028206677,46.68381986,103.03,102.97,62.97319641]
[1770028207873,3.01579548,103.02,102.97,62.97319641]
[1770028208079,3.01579548,103.02,102.97,45.16278304]
[1770028208274,3.01579548,103.02,102.97,53.91228304]
[1770028208780,3.01579548,103.01,102.97,53.91228304]
[1770028209075,3.01579548,103.01,102.97,71.72269641]
[1770028209876,3.01579548,103.02,102.97,71.72269641]
[1770028211179,50.2045174,103.02,102.96,17.81041337]
[1770028211376,3.01579548,103.0,102.96,17.81041337]
[1770028211581,3.01579548,103.01,102.96,59.45056075]
[1770028212081,3.01579548,103.01,102.96,68.20096075]
[1770028212282,3.01579548,103.03,102.98,59.45056075]
[1770028213779,3.01579548,103.02,102.98,59.45056075]
[1770028214074,3.01579548,103.02,102.98,41.64014738]
[1770028214582,3.01579548,103.01,102.97,17.81041337]
[1770028214882,3.01579548,103.01,102.96,59.45056075]
[1770028215079,3.01579548,103.01,102.96,41.64014738]
[1770028215279,3.01579548,103.01,102.96,59.45056075]
[1770028215984,3.01579548,103.01,102.96,68.20086075]
[1770028216685,3.01579548,103.01,102.97,41.64014738]
[1770028216986,3.01579548,103.01,102.97,59.45056075]
[1770028217183,3.01579548,103.01,102.97,41.64014738]
[1770028217386,3.01579548,103.03,102.97,68.19996075]
[1770028217585,3.01579548,103.03,102.98,41.64014738]
[1770028218688,11.76049548,103.03,102.98,41.64014738]
[1770028222890,3.01579548,103.01,102.97,17.81041337]
[1770028223090,3.01579548,103.0,102.96,50.39044738]
[1770028223288,3.01579548,103.01,102.96,59.45056075]
[1770028223683,3.01579548,103.01,102.97,50.38954738]
[1770028224190,44.47481288,103.02,102.97,50.38954738]
[1770028224681,3.01579548,103.01,102.97,41.64014738]
[1770028224882,3.01579548,103.0,102.95,41.64014738]
[1770028225081,3.01579548,102.99,102.95,59.45056075]
[1770028225282,3.01579548,102.98,102.93,41.64014738]
[1770028225894,3.01579548,102.98,102.93,50.39294738]
[1770028226990,29.17,103.04,102.93,41.64014738]
[1770028227191,11.75969548,103.04,102.97,41.64014738]
[1770028227391,44.47481288,103.05,102.98,44.65594286]
[1770028227891,53.21761288,103.05,102.99,50.38794738]
[1770028228287,44.47481288,103.05,102.99,50.38794738]
[1770028228587,41.4590174,103.05,102.99,50.38794738]
[1770028229088,41.4590174,103.05,102.98,17.81041337]
[1770028229089,8.7419,103.06,103.01,41.64014738]
[1770028229294,48.99989698,103.1,103.01,41.64014738]
[1770028229491,48.99989698,103.1,103.02,41.64014738]
[1770028229691,50.1984174,103.09,103.02,50.38514738]
[1770028229996,41.4590174,103.09,103.02,41.64014738]
[1770028230390,41.4590174,103.08,103.02,41.64014738]
[1770028231593,50.1991174,103.09,103.02,41.64014738]
[1770028231898,41.4590174,103.09,103.02,41.64014738]
[1770028232494,50.1994174,103.08,103.02,41.64014738]
[1770028232697,41.4590174,103.07,103.0,41.64014738]
[1770028232998,177.4462174,103.06,103.0,41.64014738]
[1770028233195,41.4590174,103.05,103.0,41.64014738]
[1770028234300,8.7436,103.04,103.0,41.64014738]
[1770028234899,8.7436,103.04,102.99,365.98]
[1770028235691,8.7436,103.04,102.99,407.62014738]
[1770028237005,8.7425,103.06,103.0,41.64014738]
[1770028237504,41.4590174,103.07,103.0,41.64014738]
[1770028238105,50.2001174,103.07,103.0,50.38674738]
[1770028239501,143.48986649,103.09,103.0,50.38674738]
[1770028239502,52.26050534,103.09,103.02,43.95785532]
[1770028240400,186.99447183,103.11,103.02,52.70295532]
[1770028240606,52.25910534,103.11,103.02,43.95785532]
[1770028240903,43.52060534,103.1,103.02,43.95785532]
[1770028241102,43.52060534,103.08,103.02,43.95785532]
[1770028242405,8.7411,103.07,103.02,43.95785532]
[1770028244098,8.7402,103.09,103.02,43.95785532]
[1770028244507,143.45786649,103.12,103.02,43.95785532]
[1770028244508,186.97847183,103.12,103.02,43.95785532]
[1770028244905,43.52060534,103.11,103.02,43.95785532]
[1770028245404,52.25900534,103.11,103.04,43.95785532]
[1770028246005,52.25900534,103.11,103.04,52.70115532]
[1770028246204,8.7388,103.1,103.04,43.95785532]
[1770028246406,43.52060534,103.11,103.04,43.95785532]
[1770028247307,52.25830534,103.11,103.04,52.70145532]
[1770028247708,7.54276649,103.12,103.04,43.95785532]
[1770028247909,51.84706066,103.13,103.07,42.36146906]
[1770028248110,43.11056066,103.13,103.07,42.36146906]
[1770028248810,8.7369,103.12,103.07,42.36146906]
[1770028249908,51.84686066,103.13,103.07,42.36146906]
[1770028251109,8.7368,103.12,103.07,42.36146906]
[1770028252511,51.84656066,103.13,103.07,42.36146906]
[1770028253213,50.65332715,103.15,103.07,42.36146906]
[1770028253511,43.11056066,103.15,103.07,42.36146906]
[1770028254011,43.11056066,103.14,103.07,42.36146906]
[1770028254714,43.11056066,103.13,103.07,42.36146906]
[1770028256314,8.7368,103.12,103.07,42.36146906]
[1770028258310,43.11056066,103.11,103.05,42.36146906]
[1770028258611,43.11056066,103.1,103.03,42.36146906]
[1770028259115,8.7394,103.09,103.03,42.36146906]
[1770028260417,11.75366011,103.09,103.03,51.10586906]
[1770028260612,11.75456011,103.08,103.03,42.36146906]
[1770028261008,46.12482077,103.11,103.03,45.37572917]
[1770028261323,153.3483,103.15,103.05,45.37572917]
[1770028261324,46.12482077,103.13,103.05,45.37572917]
[1770028261614,3.01426011,103.14,103.08,51.10166906]
[1770028261806,11.75026011,103.14,103.08,51.10166906]
[1770028262012,3.01426011,103.15,103.08,181.33342917]
[1770028262206,43.11056066,103.17,103.09,45.37572917]
[1770028262407,43.11056066,103.17,103.09,42.36146906]
[1770028262810,51.84356066,103.17,103.11,8.7374]
[1770028263013,43.11056066,103.17,103.11,51.09886906]
[1770028263210,50.63467796,103.19,103.11,51.09886906]
[1770028264115,186.42707796,103.21,103.12,51.09816906]
[1770028264311,50.63467796,103.21,103.12,42.36146906]
[1770028264516,50.63467796,103.21,103.13,42.36146906]
[1770028264517,43.11056066,103.21,103.13,42.36146906]
[1770028264818,51.84016066,103.21,103.15,42.36146906]
[1770028265006,43.11056066,103.21,103.15,42.36146906]
[1770028265210,43.11056066,103.23,103.16,8.7332]
[1770028265515,135.7071,103.28,103.18,42.36146906]
[1770028265716,43.11056066,103.29,103.21,42.36146906]
[1770028265915,186.31867796,103.29,103.21,42.36146906]
[1770028266115,178.82146066,103.27,103.19,315.36146906]
[1770028266317,178.82146066,103.27,103.2,42.36146906]
[1770028266814,144.4489,103.26,103.2,42.36146906]
[1770028267320,178.80706066,103.28,103.2,42.36146906]
[1770028267708,144.4341,103.27,103.2,42.36146906]
[1770028267910,188.74266701,103.27,103.2,42.36146906]
[1770028268117,44.30856701,103.24,103.16,41.66469512]
[1770028268613,53.03566701,103.24,103.16,41.66469512]
[1770028269421,7.5241173,103.25,103.16,50.39779512]
[1770028270020,151.9869173,103.25,103.16,50.39779512]
[1770028270221,8.7261,103.25,103.16,50.39779512]
[1770028270918,44.30856701,103.23,103.16,41.66469512]
[1770028271516,187.60868431,103.22,103.14,41.66469512]
[1770028271818,135.8014,103.2,103.14,41.66469512]
[1770028272023,187.63408431,103.2,103.13,228.56]
[1770028272221,187.63408431,103.2,103.12,41.66469512]
[1770028272622,8.7311,103.19,103.12,41.66469512]
[1770028274220,53.04046701,103.18,103.1,258.42]
[1770028274420,187.67348431,103.17,103.1,41.66469512]
[1770028275220,51.83268431,103.15,103.07,41.66469512]
[1770028275419,180.18896701,103.14,103.07,41.66469512]
[1770028276327,8.7361,103.13,103.07,41.66469512]
[1770028277424,8.737,103.12,103.04,41.66469512]
[1770028279228,44.30856701,103.13,103.04,50.40809512]
[1770028279829,53.04466701,103.13,103.06,41.66469512]
[1770028280831,8.737,103.12,103.06,41.66469512]
[1770028281622,51.83268431,103.1,103.03,41.66469512]
[1770028281822,44.30856701,103.09,103.0,41.66469512]
[1770028282526,51.83268431,103.08,103.0,41.66469512]
[1770028282725,187.79468431,103.08,103.0,41.66469512]
[1770028282927,51.83268431,103.08,103.0,41.66469512]
[1770028284428,8.7412,103.07,103.0,41.66469512]
[1770028284628,7.5241173,103.09,103.0,41.66469512]
[1770028284826,7.5241173,103.09,103.01,41.66469512]
[1770028285530,51.83268431,103.09,103.01,41.66469512]
[1770028285733,187.77978431,103.09,103.01,41.66469512]
[1770028286334,8.7412,103.07,103.01,41.66469512]
[1770028287428,16.2653173,103.07,103.01,41.66469512]
[1770028288333,44.30856701,103.08,103.01,50.41079512]
[1770028289638,53.04886701,103.08,103.01,50.41079512]
[1770028289928,44.30856701,103.08,103.01,41.66469512]
[1770028290129,8.7411,103.07,103.01,41.66469512]
[1770028290333,44.30856701,103.08,103.01,50.41069512]
[1770028290730,53.04886701,103.08,103.01,50.41069512]
[1770028291335,8.7412,103.07,103.01,41.66469512]
[1770028292632,8.7412,103.07,103.01,50.41079512]
[1770028296438,44.30856701,103.11,103.04,41.66469512]
[1770028296634,51.84691443,103.1,103.04,41.66469512]
[1770028298441,8.7398,103.09,103.04,41.66469512]
[1770028301942,53.45296318,103.11,103.04,50.40829512]
[1770028302539,53.45306318,103.1,103.04,50.40829512]
[1770028302838,44.71446318,103.1,103.04,41.66469512]
[1770028303243,734.9231,103.16,103.04,41.66469512]
[1770028303244,52.2528106,103.14,103.05,42.9124757]
[1770028303645,8.736,103.13,103.06,42.9124757]
[1770028304746,60.9880106,103.14,103.08,42.9124757]
[1770028305055,53.44966318,103.14,103.08,42.9124757]
[1770028306848,8.736,103.13,103.08,42.9124757]
[1770028309347,53.44956318,103.14,103.08,42.9124757]
[1770028309544,44.92908852,103.18,103.09,178.23541261]
[1770028309749,44.92908852,103.18,103.1,42.29031261]
[1770028311045,44.92908852,103.18,103.12,42.29031261]
[1770028312247,44.92908852,103.2,103.12,42.29031261]
[1770028312445,7.53834742,103.21,103.13,42.29031261]
[1770028312653,7.53834742,103.23,103.15,42.29031261]
[1770028312851,53.65658852,103.24,103.16,51.02371261]
[1770028313047,44.92908852,103.23,103.16,51.02371261]
[1770028314441,53.65748852,103.22,103.16,42.29031261]
[1770028315050,8.7284,103.22,103.16,51.02371261]
[1770028315252,8.7284,103.22,103.16,42.29031261]
[1770028315851,8.7292,103.21,103.16,42.29031261]
[1770028317449,53.65828852,103.21,103.14,51.02491261]
[1770028317648,8.7301,103.2,103.14,51.02491261]
[1770028318349,8.7292,103.22,103.14,51.02491261]
[1770028318555,8.7292,103.22,103.16,41.47279576]
[1770028318850,177.69481532,103.22,103.16,41.47279576]
[1770028319155,8.7301,103.2,103.16,41.47279576]
[1770028319354,8.7301,103.2,103.14,41.47279576]
[1770028319745,41.91881532,103.21,103.14,50.20779576]
[1770028320549,41.91881532,103.21,103.14,41.47279576]
[1770028320747,177.70751532,103.21,103.14,41.47279576]
[1770028320945,177.70751532,103.21,103.12,386.9]
[1770028320946,8.7308,103.2,103.13,41.47279576]
[1770028321148,8.7308,103.2,103.13,50.20789576]
[1770028321347,8.7308,103.2,103.13,41.47279576]
[1770028322452,41.91881532,103.19,103.13,41.47279576]
[1770028323152,58.18706274,103.21,103.13,50.20869576]
[1770028323456,58.18706274,103.21,103.13,41.47279576]
[1770028323457,50.64871532,103.21,103.13,41.47279576]
[1770028324553,50.64871532,103.21,103.15,41.47279576]
[1770028324754,8.7302,103.2,103.15,41.47279576]
[1770028325654,7.53834742,103.19,103.12,41.47279576]
[1770028325854,177.72101532,103.2,103.12,41.47279576]
[1770028326255,8.7326,103.17,103.12,41.47279576]
[1770028326856,8.7336,103.16,103.12,41.47279576]
[1770028327152,41.91881532,103.17,103.1,41.47279576]
[1770028328156,50.65141532,103.17,103.1,50.21049576]
[1770028328355,50.65141532,103.17,103.1,41.47279576]
[1770028329256,44.2779558,103.16,103.1,41.47279576]
[1770028330460,8.7343,103.15,103.1,41.47279576]
[1770028330856,44.2779558,103.16,103.1,41.47279576]
[1770028331058,44.2779558,103.16,103.07,44.06795921]
[1770028331258,44.2779558,103.16,103.09,44.06795921]
[1770028331259,53.0120558,103.16,103.09,44.06795921]
[1770028331757,53.0120558,103.16,103.1,52.80635921]
[1770028332954,143.36784742,103.18,103.08,135.9588]
[1770028332955,8.7326,103.17,103.11,52.80555921]
[1770028333457,44.2779558,103.22,103.11,44.06795921]
[1770028333658,53.0064558,103.22,103.15,52.80165921]
[1770028333861,44.2779558,103.22,103.15,44.06795921]
[1770028334057,53.0080558,103.2,103.14,8.7349]
[1770028334261,53.0080558,103.2,103.13,44.06795921]
[1770028334262,51.81630322,103.2,103.13,44.06795921]
[1770028334657,8.7309,103.19,103.13,44.06795921]
[1770028334859,51.81630322,103.2,103.13,44.06795921]
[1770028335059,53.0081558,103.2,103.13,52.80385921]
[1770028337065,53.0081558,103.2,103.14,8.735]
[1770028337863,8.731,103.19,103.13,52.80395921]
[1770028340472,143.31404742,103.22,103.14,44.06795921]
[1770028340473,44.2779558,103.22,103.14,44.06795921]
[1770028340673,44.2779558,103.22,103.15,44.06795921]
[1770028340871,44.2779558,103.22,103.16,44.06795921]
[1770028342372,53.0063558,103.22,103.16,52.80125921]
[1770028343268,8.7278,103.23,103.16,44.06795921]
[1770028343474,8.7278,103.23,103.18,44.06795921]
[1770028343668,44.2779558,103.24,103.18,44.06795921]
[1770028343873,53.0046558,103.24,103.18,44.06795921]
[1770028344876,60.54400322,103.23,103.16,52.80135921]
[1770028345078,44.2779558,103.22,103.15,44.06795921]
[1770028346375,8.7293,103.21,103.15,52.80215921]
[1770028346576,44.2779558,103.22,103.15,52.80215921]
[1770028346974,53.0064558,103.22,103.15,52.80215921]
[1770028347679,53.0071558,103.21,103.15,44.06795921]
[1770028348075,60.54550322,103.21,103.15,44.06795921]
[1770028348276,53.0083558,103.2,103.15,44.06795921]
[1770028348574,53.0083558,103.2,103.13,52.80315921]
[1770028349276,135.7809,103.22,103.15,44.06795921]
[1770028349277,53.0070558,103.22,103.15,44.06795921]
[1770028349982,8.7294,103.21,103.15,44.06795921]
[1770028351079,8.7294,103.21,103.15,52.80195921]
[1770028351282,53.0063558,103.22,103.15,52.80195921]
[1770028351580,44.2779558,103.22,103.15,52.80195921]
[1770028351782,44.2779558,103.21,103.15,44.06795921]
[1770028352881,44.2779558,103.21,103.15,52.80205921]
[1770028353379,8.7282,103.23,103.16,8.7333]
[1770028353584,44.2779558,103.25,103.17,44.06795921]
[1770028354285,44.2779558,103.25,103.18,44.06795921]
[1770028354883,53.0045558,103.25,103.18,52.79935921]
[1770028355080,53.0045558,103.25,103.18,44.06795921]
[1770028355882,53.0046558,103.24,103.18,44.06795921]
[1770028357285,53.0046558,103.24,103.18,52.79965921]
[1770028360182,43.9708695,103.23,103.16,68.4121327]
[1770028361188,52.6999695,103.22,103.16,59.6794327]